bitfinex-derivatives/quotes_ETHF0:USTF0_20250502
["timestamp","ask_amount","ask_price","bid_price","bid_amount"]
[1746165957186,1.5929,1831.4,1831.3,2.68774]
[1746165958080,4.1863,1831.7,1831.6,1.09166]
[1746165958283,3.52795836,1831.7,1831.6,1.09166]
[1746165958996,1.09166,1831.6,1831.5,1.6633]
[1746165959180,3.52795836,1831.7,1831.6,1.09166]
[1746165959386,3.0947,1831.7,1831.6,1.09166]
[1746165960391,1.09149,1831.9,1831.7,1.09156]
[1746165960592,1.6609,1831.8,1831.7,1.09156]
[1746165960891,2.09456038,1831.8,1831.7,1.09156]
[1746165963790,0.43366038,1831.8,1831.7,2.81986]
[1746165964392,5.95832,1832.1,1831.8,1.09149]
[1746165964594,1.7001,1832.0,1831.8,2.81149]
[1746165964893,1.7001,1832.0,1831.9,1.09148]
[1746165965086,2.13429308,1832.0,1831.9,1.09148]
[1746165965286,3.22572308,1832.0,1831.8,2.81149]
[1746165965691,2.13429308,1831.9,1831.8,2.81149]
[1746165966394,3.22577308,1831.9,1831.8,1.72]
[1746165967195,3.22577308,1831.9,1831.8,2.81154]
[1746165967896,2.13429308,1831.9,1831.8,2.81154]
[1746165968498,1.7001,1831.9,1831.8,2.81154]
[1746165969500,1.7001,1831.9,1831.8,1.09154]
[1746165969692,2.13371627,1831.9,1831.8,1.09154]
[1746165970696,2.13371627,1831.9,1831.8,1.91034]
[1746165970893,1.7001,1831.9,1831.8,1.91034]
[1746165972900,3.2078,1832.1,1832.0,1.09143]
[1746165973199,0.43357425,1832.1,1832.0,1.09143]
[1746165973594,3.26474425,1832.1,1832.0,1.09143]
[1746165973797,2.83117,1832.1,1831.9,4.30734]
[1746165973995,1.7398,1832.0,1831.9,4.30734]
[1746165974294,2.83123,1832.0,1831.9,4.30734]
[1746165974493,1.7398,1832.0,1831.9,4.30734]
[1746165980204,1.09137,1832.1,1831.9,3.2159]
[1746165980404,1.09137,1832.1,1832.0,1.09143]
[1746165981294,3.10973989,1832.1,1832.0,1.09143]
[1746165982407,2.67607,1832.1,1832.0,1.09143]
[1746165983400,3.10993743,1832.1,1832.0,1.09143]
[1746165984309,3.74986743,1832.1,1832.0,1.09143]
[1746165984512,2.16516743,1832.1,1832.0,2.68473]
[1746165984710,1.7313,1832.1,1832.0,4.22783]
[1746165985606,3.1755,1832.3,1832.2,1.09131]
[1746165985806,5.19608266,1832.3,1832.2,1.09131]
[1746165986008,6.28733266,1832.3,1832.2,1.09131]
[1746165986209,6.28733266,1832.3,1832.1,43.54502]
[1746165986505,1.586,1832.2,1832.1,43.54502]
[1746165986804,18.0470264,1832.8,1832.1,49.3225]
[1746165987106,2.02085117,1832.6,1832.5,1.09113]
[1746165987308,0.43485117,1832.6,1832.5,4.29893]
[1746165987501,10.36505224,1832.7,1832.5,5.1177]
[1746165987502,7.19955224,1832.7,1832.5,5.1177]
[1746165987702,7.19955224,1832.7,1832.6,1.09107]
[1746165987898,7.19955224,1832.7,1832.6,4.40697]
[1746165988614,7.19955224,1832.7,1832.6,45.20697]
[1746165988913,7.19955224,1832.7,1832.6,50.20697]
[1746165989115,1.586,1832.9,1832.6,49.1159]
[1746165989412,1.586,1832.9,1832.7,8.5034]
[1746165989712,1.6067,1833.1,1832.8,3.3307]
[1746165989913,1.6067,1833.1,1833.0,1.09083]
[1746165990210,1.6067,1833.1,1832.9,2.73245]
[1746165990708,1.6067,1833.1,1832.9,2.73247]
[1746165990906,2.69751,1833.1,1832.9,1.6416]
[1746165991108,2.69751,1833.1,1832.9,2.73248]
[1746165991309,1.6067,1833.1,1833.0,1.09083]
[1746165991712,1.6067,1833.1,1832.9,2.73245]
[1746165991911,1.6067,1833.1,1832.9,1.6416]
[1746165992111,1.6067,1833.1,1833.0,1.09083]
[1746165997014,4.8575,1833.3,1833.2,1.09071]
[1746165997417,1.6497,1833.3,1833.2,1.09071]
[1746165999211,1.6549,1833.4,1833.3,1.09065]
[1746165999525,1.6549,1833.4,1833.2,1.09068]
[1746166000513,1.6549,1833.4,1833.3,1.09065]
[1746166000718,1.6549,1833.4,1833.1,1.7212]
[1746166000919,1.6549,1833.4,1833.1,4.929]
[1746166001122,1.6549,1833.4,1833.3,1.09065]
[1746166001422,3.2078,1833.6,1833.2,3.2239]
[1746166001718,3.2078,1833.6,1833.5,1.09053]
[1746166002307,4.29828,1833.6,1833.4,4.21785]
[1746166002619,3.2078,1833.6,1833.4,4.21784]
[1746166002822,4.29829,1833.6,1833.4,4.21784]
[1746166004121,3.2078,1833.6,1833.5,1.09053]
[1746166004618,4.29827,1833.6,1833.5,1.09053]
[1746166004822,4.29827,1833.6,1833.4,4.21786]
[1746166006012,4.29827,1833.6,1833.5,1.09053]
[1746166006215,4.29827,1833.6,1833.4,4.21785]
[1746166007224,1.09053,1833.5,1833.4,4.21785]
[1746166007426,4.29832,1833.6,1833.4,2.61285]
[1746166007823,1.09053,1833.5,1833.4,1.5223]
[1746166008020,1.09059,1833.4,1833.3,3.653]
[1746166008222,2.73599,1833.4,1833.3,3.653]
[1746166008422,1.09065,1833.3,1833.2,1.0907]
[1746166008727,1.6608,1833.3,1833.2,1.0907]
[1746166008921,3.2078,1833.6,1833.3,1.09063]
[1746166008922,1.09059,1833.5,1833.3,1.09063]
[1746166009129,1.09059,1833.4,1833.2,1.09067]
[1746166009328,4.39678,1833.5,1833.3,1.09061]
[1746166009632,4.39678,1833.5,1833.1,4.8091]
[1746166009832,4.39678,1833.5,1833.3,1.09062]
[1746166010324,1.7408,1833.4,1833.3,1.09062]
[1746166012019,1.7408,1833.4,1833.2,2.67496]
[1746166012219,1.7408,1833.4,1833.2,1.5843]
[1746166012529,1.7408,1833.4,1833.3,1.09065]
[1746166013130,2.83139,1833.4,1833.2,4.42786]
[1746166013334,1.09068,1833.3,1833.1,5.86755]
[1746166013530,2.74538,1833.3,1833.1,5.86755]
[1746166013825,1.09071,1833.2,1833.1,3.2078]
[1746166014033,4.34861,1833.2,1833.1,3.2078]
[1746166014537,3.2579,1833.2,1833.1,4.29857]
[1746166015535,1.6608,1833.5,1833.3,1.09063]
[1746166015827,0.43406951,1833.4,1833.3,1.09063]
[1746166016132,4.35457,1833.5,1833.3,1.09063]
[1746166016630,3.264,1833.5,1833.2,3.1869]
[1746166016930,1.6377,1833.4,1833.2,3.1869]
[1746166017125,1.6377,1833.4,1833.3,1.9091]
[1746166017322,2.72829,1833.4,1833.3,1.9091]
[1746166017931,3.16294051,1833.4,1833.3,1.9091]
[1746166018132,6.85894051,1833.4,1833.3,1.9091]
[1746166018533,5.76835051,1833.4,1833.3,2.99975]
[1746166019135,2.07235051,1833.4,1833.3,2.99975]
[1746166020333,2.07235051,1833.4,1833.3,6.38405]
[1746166021426,0.43465051,1833.4,1833.3,6.38405]
[1746166021623,2.07625051,1833.4,1833.3,6.38405]
[1746166022631,0.43465051,1833.4,1833.3,6.38405]
[1746166022937,7.47,1833.6,1833.5,1.09053]
[1746166023139,7.9049247,1833.6,1833.5,1.09053]
[1746166023630,8.9954447,1833.6,1833.4,2.75544]
[1746166023838,1.632,1833.5,1833.4,2.75544]
[1746166024231,2.0669247,1833.5,1833.4,2.75544]
[1746166024539,3.1574647,1833.5,1833.3,8.0297]
[1746166024741,2.72259,1833.4,1833.3,8.0297]
[1746166024939,4.6967965,1833.4,1833.3,6.3722]
[1746166026724,4.6967965,1833.4,1833.3,2.7272]
[1746166028836,7.9045965,1833.4,1833.3,2.7272]
[1746166029039,8.34484427,1833.4,1833.3,2.7272]
[1746166029241,12.04084427,1833.4,1833.3,2.7272]
[1746166029842,10.95025427,1833.4,1833.3,2.7272]
[1746166030040,10.5100065,1833.4,1833.3,2.7272]
[1746166030239,10.5100065,1833.4,1833.2,1.09071]
[1746166030439,1.6445,1833.3,1833.2,1.09071]
[1746166030641,2.0796065,1833.3,1833.2,1.09071]
[1746166031449,3.1702865,1833.3,1833.1,1.90892]
[1746166031742,4.31671,1833.2,1833.1,0.8182]
[1746166031948,4.7518165,1833.2,1833.1,0.8182]
[1746166032148,8.4478165,1833.2,1833.1,0.8182]
[1746166032448,7.3571065,1833.2,1833.1,0.8182]
[1746166032848,7.3571065,1833.2,1833.1,1.90897]
[1746166033341,2.0972065,1833.2,1833.1,3.54597]
[1746166033545,0.4351065,1833.2,1833.1,5.15517]
[1746166033938,0.4351065,1833.3,1833.2,1.09071]
[1746166034138,0.4351065,1833.3,1833.2,2.72771]
[1746166034341,0.4351065,1833.4,1833.3,1.09065]
[1746166034539,0.4351065,1833.4,1833.3,2.74225]
[1746166036049,0.4351065,1833.4,1833.3,6.38725]
[1746166036249,6.5e-06,1833.4,1833.3,8.00005]
[1746166036450,7.19955224,1833.5,1833.4,1.09059]
[1746166036752,7.19955224,1833.5,1833.4,5.91119]
[1746166038560,1.5916,1833.7,1833.6,1.09047]
[1746166038957,1.5916,1833.7,1833.6,4.39577]
[1746166039852,5.44102183,1833.9,1833.8,1.09035]
[1746166040052,7.19642183,1833.9,1833.8,1.09035]
[1746166040862,7.19642183,1833.9,1833.8,1.08564718]
[1746166041359,5.44102183,1833.9,1833.8,1.08564718]
[1746166041551,4.19672183,1833.9,1833.8,7.74514718]
[1746166041953,4.19672183,1833.9,1833.8,48.99204986]
[1746166042159,4.19672183,1833.9,1833.8,43.99204986]
[1746166042359,4.19672183,1833.9,1833.8,43.54514718]
[1746166042964,7.19955224,1834.1,1834.0,1.09023]
[1746166043160,7.19955224,1834.1,1834.0,4.73523]
[1746166043559,7.19955224,1834.1,1834.0,6.39473]
[1746166044265,7.19955224,1834.1,1834.0,4.73523]
[1746166044659,8.92515224,1834.1,1834.0,4.73523]
[1746166045269,8.92515224,1834.1,1834.0,6.39693]
[1746166045564,8.92515224,1834.1,1834.0,4.73523]
[1746166047566,8.92515224,1834.1,1834.0,3.645]
[1746166047764,8.92515224,1834.1,1834.0,4.73523]
[1746166047965,8.92515224,1834.1,1834.0,1.09023]
[1746166048263,1.7256,1834.1,1834.0,1.09023]
[1746166048464,1.7256,1834.1,1833.9,3.2078]
[1746166048663,2.76473,1834.0,1833.9,3.2078]
[1746166049160,1.6745,1834.0,1833.9,4.29809]
[1746166049666,3.4225,1834.0,1833.9,4.29809]
[1746166049865,4.51273,1834.0,1833.9,3.2078]
[1746166050168,1.09034,1833.9,1833.8,1.09035]
[1746166050365,2.81274,1833.9,1833.8,1.09035]
[1746166050669,1.7224,1833.9,1833.8,1.09035]
[1746166051273,5.4184,1833.9,1833.8,1.09035]
[1746166052268,1.7224,1833.9,1833.8,2.78785]
[1746166054972,5.85142,1834.2,1833.8,5.3355]
[1746166055178,2.8199,1834.1,1833.9,2.62847]
[1746166055359,1.7297,1834.0,1833.9,2.62847]
[1746166055666,1.7297,1834.0,1833.9,1.09027]
[1746166056165,1.7297,1834.0,1833.9,41.89027]
[1746166057576,1.7297,1834.0,1833.9,43.60997]
[1746166057766,6.3823,1834.2,1834.1,1.09018]
[1746166058070,4.7613,1834.2,1834.1,1.09018]
[1746166058366,3.2078,1834.2,1834.1,1.09018]
[1746166058573,3.2078,1834.2,1834.1,4.32948]
[1746166059265,1.6675,1834.3,1834.2,1.09012]
[1746166059870,1.6675,1834.3,1834.2,2.80082]
[1746166063074,1.6675,1834.3,1834.2,1.09012]
[1746166064467,1.6675,1834.3,1834.2,2.68922]
[1746166065881,1.5209,1834.4,1834.3,1.09006]
[1746166066273,3.2371,1834.5,1834.4,1.09]
[1746166066582,1.6426,1834.5,1834.4,4.728]
[1746166066773,5.20934432,1834.6,1834.5,1.08994]
[1746166066974,3.236,1834.6,1834.5,6.20924]
[1746166067375,3.66615657,1834.6,1834.5,6.20924]
[1746166068083,1.6426,1834.6,1834.5,6.20924]
[1746166069279,1.6426,1834.6,1834.3,4.29782]
[1746166069584,1.6426,1834.6,1834.5,1.08994]
[1746166069780,2.73248,1834.6,1834.4,6.44066]
[1746166070078,1.6426,1834.6,1834.4,5.3507]
[1746166070384,1.7385,1834.5,1834.4,6.4407]
[1746166072481,2.82844,1834.5,1834.4,3.637]
[1746166072888,1.7385,1834.5,1834.4,4.727]
[1746166073078,2.16804607,1834.5,1834.4,4.727]
[1746166073881,3.25798607,1834.5,1834.4,3.637]
[1746166074887,3.25798607,1834.5,1834.4,4.727]
[1746166075086,3.25798607,1834.5,1834.4,3.637]
[1746166075290,3.25798607,1834.5,1834.4,4.727]
[1746166076286,3.25798607,1834.5,1834.4,3.637]
[1746166077689,1.09015,1834.2,1834.1,1.09015]
[1746166077889,1.09015,1834.2,1834.0,7.93499]
[1746166078084,3.3707,1834.1,1834.0,4.72719]
[1746166079091,4.46088,1834.1,1834.0,4.72719]
[1746166079293,4.46088,1834.1,1834.0,4.72723]
[1746166079294,3.3707,1834.1,1834.0,4.72723]
[1746166079890,3.80029786,1834.1,1834.0,4.72723]
[1746166080591,3.3707,1834.1,1834.0,6.35703]
[1746166081693,4.46088,1834.1,1834.0,3.637]
[1746166081896,4.89076315,1834.1,1834.0,3.637]
[1746166083296,4.89076315,1834.1,1834.0,4.72723]
[1746166083598,4.89076315,1834.1,1834.0,3.637]
[1746166083790,0.42988315,1834.1,1834.0,4.72723]
[1746166083984,1.09009,1834.3,1834.0,8.427]
[1746166084187,2.68259,1834.3,1834.1,1.09013]
[1746166084389,1.63,1834.2,1834.1,1.09013]
[1746166084587,3.2225,1834.2,1834.1,1.09013]
[1746166084995,4.31262,1834.2,1834.0,6.30939]
[1746166085197,1.5925,1834.1,1834.0,6.30939]
[1746166085490,2.68268,1834.1,1834.0,3.637]
[1746166085888,3.11281455,1834.1,1834.0,3.637]
[1746166086397,3.11281455,1834.1,1834.0,44.437]
[1746166087093,3.11281455,1834.1,1834.0,45.52723]
[1746166087295,2.02263455,1834.1,1834.0,45.52723]
[1746166087692,3.11281455,1834.1,1834.0,45.52723]
[1746166088600,2.02263455,1834.1,1834.0,45.52723]
[1746166088788,2.02263455,1834.1,1834.0,4.72723]
[1746166089490,3.11281455,1834.1,1834.0,4.72723]
[1746166089691,3.11281455,1834.1,1834.0,3.637]
[1746166090694,3.11281455,1834.1,1834.0,4.72723]
[1746166090893,3.11281455,1834.1,1834.0,3.637]
[1746166091295,3.11281455,1834.1,1834.0,4.72723]
[1746166091500,3.11281455,1834.1,1834.0,5.54503]
[1746166092295,2.02263455,1834.1,1834.0,5.54503]
[1746166092600,3.11281455,1834.1,1834.0,5.54503]
[1746166092900,3.11281455,1834.1,1834.0,4.4548]
[1746166095097,3.11281455,1834.1,1834.0,0.8178]
[1746166096305,3.11281455,1834.1,1834.0,1.90803]
[1746166096500,4.67041455,1834.1,1834.0,1.90803]
[1746166096697,3.58023455,1834.1,1834.0,6.83643]
[1746166097306,0.43013455,1834.1,1834.0,6.83643]
[1746166097695,3.2078,1834.2,1834.0,6.83643]
[1746166097696,4.8296,1834.2,1834.1,1.09018]
[1746166098303,4.8296,1834.2,1834.1,2.70088]
[1746166098698,5.25974129,1834.2,1834.1,2.70088]
[1746166100005,3.63794129,1834.2,1834.1,2.70088]
[1746166100903,0.43014129,1834.2,1834.1,2.70088]
[1746166101300,5.21524432,1834.3,1834.2,1.09012]
[1746166101596,1.5993,1834.3,1834.2,2.78742]
[1746166101796,0.430368,1834.3,1834.2,2.78742]
[1746166102199,10.00421224,1834.5,1834.3,1.09003]
[1746166102399,0.4303365,1834.4,1834.3,5.93723]
[1746166104406,2.1450365,1834.4,1834.3,5.93723]
[1746166105413,0.4303365,1834.4,1834.3,5.93723]
[1746166105710,0.4303365,1834.4,1834.3,12.77803]
[1746166105909,3.62266009,1834.5,1834.3,12.77803]
[1746166105910,3.62266009,1834.5,1834.4,1.09]
[1746166106106,3.62266009,1834.5,1834.4,2.8174]
[1746166107614,3.2078,1834.6,1834.5,1.08994]
[1746166107803,3.2078,1834.6,1834.5,2.74754]
[1746166108004,3.63793309,1834.6,1834.5,2.74754]
[1746166108509,5.25193309,1834.6,1834.5,2.74754]
[1746166109110,0.43013309,1834.6,1834.5,10.95534]
[1746166109412,3.62266009,1834.7,1834.6,1.08988]
[1746166109612,3.62266009,1834.7,1834.6,9.62778]
[1746166110107,3.62266009,1834.7,1834.6,4.9049]
[1746166110305,8.64536009,1834.7,1834.5,0.8176]
[1746166110516,2.70388,1834.6,1834.5,0.8176]
[1746166110908,2.04374176,1834.6,1834.5,1.90754]
[1746166111108,2.04374176,1834.6,1834.5,3.57924]
[1746166111412,1.614,1834.6,1834.5,3.57924]
[1746166111605,1.614,1834.6,1834.5,2.4893]
[1746166111804,1.614,1834.6,1834.5,3.57924]
[1746166112005,2.04371785,1834.6,1834.5,3.57924]
[1746166112213,1.614,1834.6,1834.5,3.57924]
[1746166113511,1.7069,1834.7,1834.6,1.08988]
[1746166113813,4.87633978,1834.7,1834.6,1.7326]
[1746166114505,4.87633978,1834.7,1834.5,0.8176]
[1746166114703,1.6499,1834.6,1834.5,0.8176]
[1746166115003,2.73978,1834.6,1834.5,0.8176]
[1746166117010,3.16929652,1834.6,1834.5,0.8176]
[1746166117211,6.86529652,1834.6,1834.5,0.8176]
[1746166118807,6.86529652,1834.6,1834.2,1.09011]
[1746166118808,1.09012,1834.2,1834.1,3.2078]
[1746166119409,3.2331,1834.4,1834.1,3.2078]
[1746166119607,2.74599,1834.3,1834.1,4.29798]
[1746166119808,1.6944,1834.2,1834.1,4.29798]
[1746166120015,1.6944,1834.2,1834.1,5.93518]
[1746166121816,2.66723,1834.4,1834.2,1.0901]
[1746166122016,2.12416004,1834.3,1834.2,2.7273]
[1746166122814,2.12416004,1834.3,1834.2,1.0901]
[1746166123512,2.12416004,1834.3,1834.2,2.7569]
[1746166124013,1.09,1834.4,1834.3,1.09005]
[1746166124218,2.6726,1834.4,1834.3,5.97325]
[1746166124620,1.5826,1834.4,1834.3,5.97325]
[1746166124821,2.01272561,1834.4,1834.3,5.97325]
[1746166125022,3.10272561,1834.4,1834.3,4.8832]
[1746166125223,3.10272561,1834.4,1834.2,1.09007]
[1746166125414,1.5826,1834.3,1834.2,2.71137]
[1746166126424,1.5826,1834.3,1834.2,4.36187]
[1746166128527,2.0132486,1834.3,1834.2,4.36187]
[1746166129627,1.5826,1834.3,1834.2,4.36187]
[1746166130429,2.01332952,1834.3,1834.2,4.36187]
[1746166138934,0.43072952,1834.3,1834.2,4.36187]
[1746166140434,3.62266009,1834.4,1834.3,1.09006]
[1746166140635,3.62266009,1834.4,1834.3,9.59256]
[1746166142336,5.35486009,1834.4,1834.3,9.59256]
[1746166142834,1.7322,1834.4,1834.3,9.59256]
[1746166143437,2.16305185,1834.4,1834.3,9.59256]
[1746166143937,1.7322,1834.4,1834.3,9.59256]
[1746166144737,2.16309324,1834.4,1834.3,9.59256]
[1746166145236,3.25309324,1834.4,1834.3,6.8358]
[1746166145438,3.25309324,1834.4,1834.3,3.628]
[1746166146843,3.25309324,1834.4,1834.3,4.71806]
[1746166147146,2.16309324,1834.4,1834.3,4.71806]
[1746166147842,3.69999324,1834.4,1834.3,4.71806]
[1746166148846,9.82902337,1834.4,1834.3,4.71806]
[1746166150348,9.82902337,1834.4,1834.3,1.09006]
[1746166151150,8.29212337,1834.4,1834.3,2.69256]
[1746166151448,8.29212337,1834.4,1834.3,7.49866]
[1746166152249,5.78833535,1834.4,1834.3,7.49866]
[1746166153448,4.05613535,1834.4,1834.3,7.49866]
[1746166155051,0.43089324,1834.4,1834.3,7.49866]
[1746166158157,0.43089324,1834.4,1834.3,5.89616]
[1746166158553,2.02509324,1834.4,1834.3,5.89616]
[1746166158755,2.02509324,1834.4,1834.3,4.29786]
[1746166159456,2.02509324,1834.4,1834.2,1.90778]
[1746166159753,6.39065324,1834.3,1834.2,0.8177]
[1746166159950,5.30059324,1834.3,1834.2,1.90782]
[1746166160151,3.64429324,1834.3,1834.2,1.90782]
[1746166160547,1.6074,1834.3,1834.2,1.90782]
[1746166160752,1.6074,1834.3,1834.2,3.60262]
[1746166160957,1.6074,1834.3,1834.2,5.13782]
[1746166163060,1.606,1834.5,1834.4,1.09]
[1746166163260,3.3617,1834.5,1834.4,1.09]
[1746166163648,3.79262503,1834.5,1834.4,1.09]
[1746166164559,3.79262503,1834.5,1834.3,4.29781]
[1746166164763,2.84574,1834.4,1834.2,1.9078]
[1746166164957,2.18662503,1834.3,1834.2,0.8177]
[1746166165262,3.86832503,1834.3,1834.2,0.8177]
[1746166165962,3.86832503,1834.3,1834.2,1.90782]
[1746166166462,3.86832503,1834.3,1834.2,0.8177]
[1746166166856,4.95838503,1834.3,1834.2,0.8177]
[1746166167863,4.95838503,1834.3,1834.2,1.90782]
[1746166168161,8.65438503,1834.3,1834.2,1.90782]
[1746166168350,7.56432503,1834.3,1834.2,1.90782]
[1746166168756,8.65438503,1834.3,1834.2,1.90782]
[1746166169065,8.65438503,1834.3,1834.2,0.8177]
[1746166169264,4.95838503,1834.3,1834.2,0.8177]
[1746166169462,4.95838503,1834.3,1834.2,1.90782]
[1746166169966,4.95838503,1834.3,1834.2,0.8177]
[1746166170163,4.95838503,1834.3,1834.2,1.90782]
[1746166170164,8.65438503,1834.3,1834.2,1.90782]
[1746166170862,8.65437044,1834.3,1834.2,1.90782]
[1746166172159,8.65437044,1834.3,1834.2,1.09012]
[1746166172465,12.56431044,1834.3,1834.2,1.09012]
[1746166172665,7.56431044,1834.3,1834.2,1.09012]
[1746166173365,3.86831044,1834.3,1834.2,1.09012]
[1746166173566,4.95837044,1834.3,1834.2,1.09012]
[1746166173866,3.86831044,1834.3,1834.2,1.09012]
[1746166174260,9.99738997,1834.3,1834.2,1.09012]
[1746166175564,9.99738997,1834.3,1834.1,4.4408]
[1746166175764,1.6921,1834.2,1834.1,5.53098]
[1746166175962,3.3375,1834.2,1834.1,5.53098]
[1746166181263,3.3375,1834.2,1834.1,7.06778]
[1746166181871,3.62718933,1834.3,1834.2,1.09012]
[1746166182063,3.62718933,1834.3,1834.2,4.26242]
[1746166182258,4.05806868,1834.3,1834.2,4.26242]
[1746166183970,3.62718933,1834.3,1834.2,4.26242]
[1746166184270,1.7235,1834.4,1834.3,1.09006]
[1746166184471,3.1447,1834.6,1834.5,1.08994]
[1746166184665,3.58487219,1834.6,1834.5,1.08994]
[1746166184864,3.1447,1834.6,1834.5,1.08994]
[1746166185166,3.57560068,1834.6,1834.5,2.73504]
[1746166186066,2.00810068,1834.6,1834.5,2.73504]
[1746166186275,2.44826425,1834.6,1834.5,2.73504]
[1746166186465,3.69210068,1834.6,1834.5,2.73504]
[1746166186971,7.31767484,1834.6,1834.5,2.73504]
[1746166187366,7.75784333,1834.6,1834.5,2.73504]
[1746166187567,7.75784989,1834.6,1834.5,2.73504]
[1746166187865,7.75784899,1834.6,1834.5,2.73504]
[1746166188066,7.31767484,1834.6,1834.5,2.73504]
[1746166188676,5.74047484,1834.6,1834.5,2.73504]
[1746166188865,5.74047484,1834.6,1834.5,4.35254]
[1746166189668,6.83034529,1834.6,1834.4,6.33876]
[1746166189868,1.6536,1834.5,1834.4,4.70796]
[1746166190063,3.2172,1834.5,1834.4,4.70796]
[1746166190276,3.64809113,1834.5,1834.4,4.70796]
[1746166192074,4.73803113,1834.5,1834.4,3.618]
[1746166192476,5.17823003,1834.5,1834.4,3.618]
[1746166192775,5.17823003,1834.5,1834.3,1.09002]
[1746166192776,5.17827003,1834.5,1834.3,1.09002]
[1746166193074,3.2396,1834.4,1834.3,1.09002]
[1746166193276,3.67049113,1834.4,1834.3,1.09002]
[1746166194078,2.08159113,1834.4,1834.3,1.09002]
[1746166194376,2.08159113,1834.4,1834.3,3.48322]
[1746166194579,2.08159113,1834.4,1834.3,5.16232]
[1746166199282,1.20437362,1834.5,1834.4,1.09]
[1746166199472,5.92772474,1834.8,1834.7,1.08982]
[1746166199776,5.92772474,1834.8,1834.7,48.71562]
[1746166199981,7.52172474,1834.8,1834.7,48.71562]
[1746166200281,10.65793542,1834.8,1834.7,48.71562]
[1746166200486,10.65793542,1834.8,1834.7,40.8]
[1746166200487,12.18051993,1834.8,1834.7,40.8]
[1746166200782,1.08986,1834.7,1834.4,1.08998]
[1746166201080,1.5716,1834.6,1834.5,40.8]
[1746166201473,3.59840731,1834.6,1834.5,40.8]
[1746166201682,3.59841792,1834.6,1834.5,40.8]
[1746166201982,3.59839176,1834.6,1834.5,40.8]
[1746166202285,3.1656,1834.6,1834.5,40.8]
[1746166202779,4.25548,1834.6,1834.4,1.08999]
[1746166202980,1.7314,1834.5,1834.4,1.08999]
[1746166203284,1.7314,1834.5,1834.3,7.6425]
[1746166203582,1.7314,1834.5,1834.3,4.4347]
[1746166203583,1.6365,1834.4,1834.3,4.4347]
[1746166204080,3.3679,1834.4,1834.3,4.4347]
[1746166204683,3.3679,1834.4,1834.3,5.52476]
[1746166205781,4.4579,1834.4,1834.3,5.52476]
[1746166206177,4.4579,1834.4,1834.3,4.4347]
[1746166207078,9.4579,1834.4,1834.3,0.8177]
[1746166207285,9.89079244,1834.4,1834.3,0.8177]
[1746166208086,13.58679244,1834.4,1834.3,0.8177]
[1746166208287,19.42479244,1834.4,1834.3,0.8177]
[1746166208987,19.42474805,1834.4,1834.3,0.8177]
[1746166209188,1.09018,1834.1,1834.0,3.612]
[1746166209388,1.09029,1833.9,1833.8,7.27895468]
[1746166209990,2.75639,1833.9,1833.8,7.27895468]
[1746166210191,2.75639,1833.9,1833.7,0.2935]
[1746166210390,1.6661,1833.8,1833.7,1.38391]
[1746166211093,2.75645,1833.8,1833.7,0.2935]
[1746166211502,1.6661,1833.8,1833.7,1.38391]
[1746166211693,2.75645,1833.8,1833.7,1.38391]
[1746166212401,1.6661,1833.8,1833.7,1.38391]
[1746166212695,2.75645,1833.8,1833.7,0.2935]
[1746166213095,6.45245,1833.8,1833.7,0.2935]
[1746166213301,1.09047,1833.6,1833.5,10.48675468]
[1746166213502,4.27946,1833.7,1833.5,49.16948468]
[1746166213795,1.6404,1833.6,1833.5,52.37728468]
[1746166214001,5.2905,1833.8,1833.5,52.37728468]
[1746166214002,5.2905,1833.8,1833.7,1.09041]
[1746166214304,3.2132,1833.8,1833.7,1.09041]
[1746166214802,2.70905,1833.8,1833.7,2.71791]
[1746166215302,2.70905,1833.8,1833.7,1.6275]
[1746166215602,1.09047,1833.6,1833.5,40.8]
[1746166216400,4.36427,1833.6,1833.5,40.8]
[1746166217906,4.36427,1833.6,1833.5,41.89053]
[1746166218297,3.2738,1833.6,1833.5,41.89053]
[1746166219505,4.36427,1833.6,1833.5,43.59903]
[1746166219805,3.2738,1833.6,1833.5,43.59903]
[1746166220101,4.36427,1833.6,1833.5,43.59903]
[1746166220304,2.70917,1833.6,1833.5,43.59903]
[1746166220706,1.09045,1833.7,1833.5,42.5085]
[1746166220903,1.09047,1833.6,1833.5,43.59899]
[1746166222409,2.78447,1833.6,1833.5,42.5085]
[1746166222599,1.09053,1833.5,1833.4,4.59183]
[1746166222899,2.78453,1833.5,1833.4,4.59183]
[1746166223204,2.78453,1833.5,1833.4,45.39183]
[1746166223710,2.78453,1833.5,1833.4,3.5013]
[1746166224208,2.78453,1833.5,1833.4,4.59189]
[1746166224409,2.78453,1833.5,1833.4,1.38409]
[1746166225212,2.78453,1833.5,1833.4,0.2935]
[1746166226812,2.78453,1833.5,1833.4,1.38409]
[1746166230710,2.78453,1833.5,1833.4,0.2935]
[1746166231011,2.78453,1833.5,1833.4,1.38409]
[1746166231214,2.78453,1833.5,1833.4,0.2935]
[1746166231405,2.78453,1833.5,1833.4,1.38409]
[1746166231605,2.78453,1833.5,1833.4,0.2935]
[1746166233512,2.78453,1833.5,1833.4,1.38409]
[1746166234113,2.78453,1833.5,1833.4,3.00879]
[1746166235015,2.78453,1833.5,1833.4,1.9182]
[1746166236017,2.78453,1833.5,1833.4,1.6247]
[1746166236616,2.78453,1833.5,1833.4,2.71529]
[1746166237413,2.78453,1833.5,1833.4,1.6247]
[1746166237617,2.78453,1833.5,1833.4,2.71529]
[1746166237819,1.694,1833.5,1833.4,2.71529]
[1746166238013,1.09047,1833.6,1833.5,1.09053]
[1746166238317,1.09047,1833.6,1833.5,1.6108]
[1746166238511,2.83087,1833.6,1833.5,1.6108]
[1746166239120,6.52687,1833.6,1833.5,1.6108]
[1746166239419,1.09057,1833.5,1833.3,7.1699]
[1746166239719,2.83097,1833.5,1833.3,8.9103]